[Event "Titled Tuesday Blitz March 01 Early 2022"]
[White "Quirke, Jeffrey"]
[Black "Chernomordik, Pavel"]
[WhiteFideId "2013029"]
[BlackFideId "2804530"]
[WhiteElo "2152"]
[BlackElo "2249"]
[Result "0-1"]
[Round "04"]
[TimeControl "180+1"]
[Date "2022.03.01"]
[WhiteClock "0:00:03"]
[BlackClock "0:00:24"]

1. c4 {[%clk 0:03:00]}  g6 {[%clk 0:03:00]} 2. g3 {[%clk 0:02:57]}  Bg7 {[%clk 0:03:01]} 3. Bg2 {[%clk 0:02:58]}  e5 {[%clk 0:02:58]} 4. Nc3 {[%clk 0:02:56]}  Nc6 {[%clk 0:02:58]} 5. d3 {[%clk 0:02:52]}  d6 {[%clk 0:02:58]} 6. Nf3 {[%clk 0:02:52]}  h6 {[%clk 0:02:57]} 7. O-O {[%clk 0:02:52]}  Be6 {[%clk 0:02:56]} 8. Nd5 {[%clk 0:02:43]}  Qd7 {[%clk 0:02:52]} 9. Re1 {[%clk 0:02:39]}  Nd8 {[%clk 0:02:50]} 10. Rb1 {[%clk 0:02:31]}  c6 {[%clk 0:02:48]} 11. Nc3 {[%clk 0:02:29]}  Bh3 {[%clk 0:02:41]} 12. Bh1 {[%clk 0:02:29]}  Nf6 {[%clk 0:02:32]} 13. b4 {[%clk 0:02:25]}  O-O {[%clk 0:02:31]} 14. b5 {[%clk 0:02:24]}  Ng4 {[%clk 0:02:26]} 15. bxc6 {[%clk 0:02:16]}  bxc6 {[%clk 0:02:25]} 16. Ba3 {[%clk 0:02:11]}  f5 {[%clk 0:02:18]} 17. Qc2 {[%clk 0:01:33]}  Ne6 {[%clk 0:02:12]} 18. e3 {[%clk 0:01:23]}  Rac8 {[%clk 0:02:00]} 19. Rb2 {[%clk 0:00:47]}  f4 {[%clk 0:01:49]} 20. Ne4 {[%clk 0:00:38]}  c5 {[%clk 0:01:28]} 21. Qe2 {[%clk 0:00:29]}  fxe3 {[%clk 0:01:25]} 22. fxe3 {[%clk 0:00:28]}  g5 {[%clk 0:01:19]} 23. Reb1 {[%clk 0:00:27]}  Rc7 {[%clk 0:01:17]} 24. Rb5 {[%clk 0:00:23]}  Qe7 {[%clk 0:00:59]} 25. Bg2 {[%clk 0:00:23]}  Bxg2 {[%clk 0:00:58]} 26. Kxg2 {[%clk 0:00:23]}  h5 {[%clk 0:00:56]} 27. h3 {[%clk 0:00:21]}  Nh6 {[%clk 0:00:55]} 28. Bc1 {[%clk 0:00:14]}  Nf5 {[%clk 0:00:53]} 29. Rb8 {[%clk 0:00:07]}  Rcc8 {[%clk 0:00:46]} 30. Rxc8 {[%clk 0:00:07]}  Rxc8 {[%clk 0:00:45]} 31. Qb2 {[%clk 0:00:06]}  g4 {[%clk 0:00:40]} 32. hxg4 {[%clk 0:00:06]}  hxg4 {[%clk 0:00:40]} 33. Nh2 {[%clk 0:00:07]}  Ng5 {[%clk 0:00:32]} 34. Nxg5 {[%clk 0:00:05]}  Qxg5 {[%clk 0:00:32]} 35. e4 {[%clk 0:00:04]}  Ne3+ {[%clk 0:00:25]} 36. Bxe3 {[%clk 0:00:04]}  Qxe3 {[%clk 0:00:25]} 37. Nxg4 {[%clk 0:00:03]}  Qxd3 {[%clk 0:00:24]} 0-1


[Site "https://www.chess.com"]

[Event "Titled Tuesday Blitz March 01 Early 2022"]
[White "Rangel, Daniel"]
[Black "Jaferian, Koosha"]
[WhiteFideId "2124475"]
[BlackFideId "12507440"]
[WhiteElo "2187"]
[BlackElo "2027"]
[Result "0-1"]
[Round "04"]
[TimeControl "180+1"]
[Date "2022.03.01"]
[WhiteClock "0:00:08"]
[BlackClock "0:00:36"]

1. e4 {[%clk 0:03:00]}  c6 {[%clk 0:03:00]} 2. d4 {[%clk 0:03:00]}  d5 {[%clk 0:03:01]} 3. e5 {[%clk 0:03:00]}  Bf5 {[%clk 0:03:01]} 4. c4 {[%clk 0:02:58]}  e6 {[%clk 0:03:00]} 5. Nc3 {[%clk 0:02:58]}  dxc4 {[%clk 0:03:00]} 6. Bxc4 {[%clk 0:02:58]}  Nd7 {[%clk 0:03:01]} 7. Nge2 {[%clk 0:02:54]}  Ne7 {[%clk 0:02:55]} 8. O-O {[%clk 0:02:53]}  Bg6 {[%clk 0:02:55]} 9. Bg5 {[%clk 0:02:35]}  Qc7 {[%clk 0:02:51]} 10. Ng3 {[%clk 0:02:31]}  Nf5 {[%clk 0:02:50]} 11. Nge4 {[%clk 0:02:26]}  h6 {[%clk 0:02:45]} 12. Bf4 {[%clk 0:02:26]}  Be7 {[%clk 0:02:42]} 13. Nd6+ {[%clk 0:02:19]}  Nxd6 {[%clk 0:02:38]} 14. exd6 {[%clk 0:02:18]}  Bxd6 {[%clk 0:02:39]} 15. Bxd6 {[%clk 0:02:00]}  Qxd6 {[%clk 0:02:40]} 16. Qg4 {[%clk 0:02:00]}  Nf6 {[%clk 0:02:38]} 17. Qh4 {[%clk 0:01:57]}  O-O {[%clk 0:02:32]} 18. Rfe1 {[%clk 0:01:49]}  Rad8 {[%clk 0:02:32]} 19. Rad1 {[%clk 0:01:49]}  Rd7 {[%clk 0:02:24]} 20. Re5 {[%clk 0:01:42]}  Rfd8 {[%clk 0:02:16]} 21. Qg3 {[%clk 0:01:40]}  Bf5 {[%clk 0:01:50]} 22. Bb3 {[%clk 0:01:14]}  Qb4 {[%clk 0:01:46]} 23. Rxf5 {[%clk 0:00:31]}  exf5 {[%clk 0:01:40]} 24. Qh3 {[%clk 0:00:29]}  Rxd4 {[%clk 0:01:36]} 25. Re1 {[%clk 0:00:28]}  Re4 {[%clk 0:01:28]} 26. Rf1 {[%clk 0:00:27]}  Re5 {[%clk 0:01:23]} 27. Qg3 {[%clk 0:00:24]}  f4 {[%clk 0:01:19]} 28. Qh4 {[%clk 0:00:20]}  Qe7 {[%clk 0:01:09]} 29. h3 {[%clk 0:00:19]}  Re1 {[%clk 0:01:07]} 30. Qxf4 {[%clk 0:00:15]}  Rxf1+ {[%clk 0:01:07]} 31. Kxf1 {[%clk 0:00:16]}  Nd5 {[%clk 0:01:02]} 32. Nxd5 {[%clk 0:00:11]}  cxd5 {[%clk 0:01:03]} 33. Kg1 {[%clk 0:00:11]}  d4 {[%clk 0:00:56]} 34. Qd2 {[%clk 0:00:11]}  d3 {[%clk 0:00:56]} 35. Bc4 {[%clk 0:00:11]}  Qf6 {[%clk 0:00:39]} 36. Bxd3 {[%clk 0:00:08]}  Qd4 {[%clk 0:00:36]} 0-1


[Site "https://www.chess.com"]

[Event "Titled Tuesday Blitz March 01 Early 2022"]
[White "Risteski, Emil"]
[Black "Van Foreest, Jorden"]
[WhiteFideId "15005267"]
[BlackFideId "1039784"]
[WhiteElo "2070"]
[BlackElo "2609"]
[Result "1/2-1/2"]
[Round "04"]
[TimeControl "180+1"]
[Date "2022.03.01"]
[WhiteClock "0:00:15"]
[BlackClock "0:00:16"]

1. e4 {[%clk 0:03:00]}  c5 {[%clk 0:02:55]} 2. Be2 {[%clk 0:03:00]}  Nc6 {[%clk 0:02:53]} 3. f4 {[%clk 0:03:00]}  Nf6 {[%clk 0:02:49]} 4. d3 {[%clk 0:03:00]}  Nd4 {[%clk 0:02:41]} 5. Nf3 {[%clk 0:02:59]}  Nxe2 {[%clk 0:02:40]} 6. Qxe2 {[%clk 0:03:00]}  g6 {[%clk 0:02:37]} 7. b3 {[%clk 0:03:00]}  Bg7 {[%clk 0:02:37]} 8. Bb2 {[%clk 0:03:00]}  O-O {[%clk 0:02:38]} 9. O-O {[%clk 0:02:57]}  d5 {[%clk 0:02:38]} 10. e5 {[%clk 0:02:55]}  Ne8 {[%clk 0:02:31]} 11. c4 {[%clk 0:02:55]}  d4 {[%clk 0:02:31]} 12. b4 {[%clk 0:02:53]}  b6 {[%clk 0:02:31]} 13. Nbd2 {[%clk 0:02:52]}  Nc7 {[%clk 0:02:29]} 14. Ne4 {[%clk 0:02:50]}  Ne6 {[%clk 0:02:29]} 15. Nfg5 {[%clk 0:02:45]}  Nxg5 {[%clk 0:02:27]} 16. Nxg5 {[%clk 0:02:43]}  cxb4 {[%clk 0:02:25]} 17. e6 {[%clk 0:02:16]}  f5 {[%clk 0:02:13]} 18. Rfe1 {[%clk 0:01:56]}  Bb7 {[%clk 0:02:12]} 19. Nf7 {[%clk 0:01:49]}  Qc7 {[%clk 0:02:11]} 20. Ne5 {[%clk 0:01:46]}  Rfd8 {[%clk 0:02:05]} 21. Nf7 {[%clk 0:01:40]}  Qxf4 {[%clk 0:02:02]} 22. Nxd8 {[%clk 0:01:38]}  Rxd8 {[%clk 0:02:03]} 23. a3 {[%clk 0:01:35]}  b3 {[%clk 0:02:02]} 24. a4 {[%clk 0:01:33]}  Bh6 {[%clk 0:01:37]} 25. a5 {[%clk 0:01:31]}  Qe3+ {[%clk 0:01:36]} 26. Qxe3 {[%clk 0:01:18]}  Bxe3+ {[%clk 0:01:36]} 27. Kf1 {[%clk 0:01:14]}  f4 {[%clk 0:01:32]} 28. axb6 {[%clk 0:01:14]}  axb6 {[%clk 0:01:31]} 29. Ra7 {[%clk 0:01:13]}  Rb8 {[%clk 0:01:28]} 30. Ba3 {[%clk 0:00:56]}  f3 {[%clk 0:01:01]} 31. gxf3 {[%clk 0:00:35]}  Bxf3 {[%clk 0:01:02]} 32. Bxe7 {[%clk 0:00:31]}  Bg4 {[%clk 0:00:41]} 33. Bd6 {[%clk 0:00:23]}  Re8 {[%clk 0:00:40]} 34. e7 {[%clk 0:00:21]}  Bf5 {[%clk 0:00:39]} 35. Ke2 {[%clk 0:00:19]}  Bg4+ {[%clk 0:00:39]} 36. Kf1 {[%clk 0:00:19]}  b2 {[%clk 0:00:34]} 37. Rb7 {[%clk 0:00:15]}  Bf5 {[%clk 0:00:27]} 38. Ke2 {[%clk 0:00:15]}  Bg5 {[%clk 0:00:22]} 39. Rxb6 {[%clk 0:00:11]}  Bxe7 {[%clk 0:00:20]} 40. Bxe7 {[%clk 0:00:12]}  Rxe7+ {[%clk 0:00:20]} 41. Kd2 {[%clk 0:00:13]}  Rxe1 {[%clk 0:00:17]} 42. Kxe1 {[%clk 0:00:14]}  Bxd3 {[%clk 0:00:18]} 43. Rxb2 {[%clk 0:00:13]}  Bxc4 {[%clk 0:00:18]} 44. Rb4 {[%clk 0:00:13]}  Be6 {[%clk 0:00:18]} 45. Rxd4 {[%clk 0:00:14]}  Kg7 {[%clk 0:00:19]} 46. Kf2 {[%clk 0:00:14]}  Kf6 {[%clk 0:00:20]} 47. Rb4 {[%clk 0:00:15]}  g5 {[%clk 0:00:20]} 48. Rb6 {[%clk 0:00:15]}  h5 {[%clk 0:00:20]} 49. Kg2 {[%clk 0:00:15]}  h4 {[%clk 0:00:21]} 50. Kf2 {[%clk 0:00:15]}  Kf5 {[%clk 0:00:21]} 51. Rb4 {[%clk 0:00:15]}  Bd5 {[%clk 0:00:21]} 52. Rb5 {[%clk 0:00:14]}  Ke5 {[%clk 0:00:21]} 53. Rb4 {[%clk 0:00:15]}  Be6 {[%clk 0:00:21]} 54. Ke3 {[%clk 0:00:15]}  Kf6 {[%clk 0:00:20]} 55. Kd4 {[%clk 0:00:14]}  Kf5 {[%clk 0:00:20]} 56. Ke3 {[%clk 0:00:14]}  Bf7 {[%clk 0:00:19]} 57. Ra4 {[%clk 0:00:12]}  Be8 {[%clk 0:00:18]} 58. Rb4 {[%clk 0:00:13]}  Bd7 {[%clk 0:00:18]} 59. Kf2 {[%clk 0:00:13]}  Bc6 {[%clk 0:00:18]} 60. Ke3 {[%clk 0:00:13]}  Bd7 {[%clk 0:00:17]} 61. Rc4 {[%clk 0:00:13]}  Be6 {[%clk 0:00:17]} 62. Rb4 {[%clk 0:00:13]}  Bf7 {[%clk 0:00:17]} 63. Kf2 {[%clk 0:00:14]}  Be6 {[%clk 0:00:17]} 64. Kg1 {[%clk 0:00:15]}  Bf7 {[%clk 0:00:16]} 65. Kg2 {[%clk 0:00:15]}  Bd5+ {[%clk 0:00:16]} 66. Kf2 {[%clk 0:00:15]}  Be6 {[%clk 0:00:17]} 67. Rd4 {[%clk 0:00:14]}  Ke5 {[%clk 0:00:17]} 68. Rb4 {[%clk 0:00:14]}  Bd5 {[%clk 0:00:18]} 69. Kg1 {[%clk 0:00:14]}  Be4 {[%clk 0:00:18]} 70. Kf2 {[%clk 0:00:14]}  Kf4 {[%clk 0:00:18]} 71. Rb8 {[%clk 0:00:13]}  Kg4 {[%clk 0:00:17]} 72. Kg1 {[%clk 0:00:12]}  Bf3 {[%clk 0:00:15]} 73. Rb4+ {[%clk 0:00:12]}  Kf5 {[%clk 0:00:11]} 74. Rb3 {[%clk 0:00:13]}  Bd5 {[%clk 0:00:10]} 75. Rc3 {[%clk 0:00:13]}  Kf4 {[%clk 0:00:10]} 76. Rc5 {[%clk 0:00:13]}  Be4 {[%clk 0:00:10]} 77. Rc4 {[%clk 0:00:13]}  g4 {[%clk 0:00:11]} 78. Rb4 {[%clk 0:00:14]}  g3 {[%clk 0:00:11]} 79. hxg3+ {[%clk 0:00:15]}  hxg3 {[%clk 0:00:12]} 80. Rb2 {[%clk 0:00:13]}  Kf3 {[%clk 0:00:12]} 81. Rb6 {[%clk 0:00:14]}  Kf4 {[%clk 0:00:12]} 82. Rb8 {[%clk 0:00:15]}  Kg4 {[%clk 0:00:12]} 83. Rd8 {[%clk 0:00:16]}  Kf4 {[%clk 0:00:13]} 84. Rf8+ {[%clk 0:00:17]}  Bf5 {[%clk 0:00:14]} 85. Rg8 {[%clk 0:00:16]}  Be4 {[%clk 0:00:14]} 86. Rg7 {[%clk 0:00:16]}  Bd5 {[%clk 0:00:14]} 87. Kf1 {[%clk 0:00:14]}  Bc4+ {[%clk 0:00:14]} 88. Kg1 {[%clk 0:00:15]}  Bd5 {[%clk 0:00:15]} 89. Kf1 {[%clk 0:00:15]}  Be4 {[%clk 0:00:15]} 90. Kg1 {[%clk 0:00:15]}  Bd5 {[%clk 0:00:16]} 1/2-1/2


[Site "https://www.chess.com"]

[Event "Titled Tuesday Blitz March 01 Early 2022"]
[White "Roberson, Peter T"]
[Black "Wahedi, Ahmad Siar"]
[WhiteFideId "412384"]
[BlackFideId "4651260"]
[WhiteElo "2346"]
[BlackElo "2364"]
[Result "1-0"]
[Round "04"]
[TimeControl "180+1"]
[Date "2022.03.01"]
[WhiteClock "0:00:13"]
[BlackClock "0:00:01"]

1. e4 {[%clk 0:03:00]}  Nf6 {[%clk 0:03:00]} 2. Nc3 {[%clk 0:02:58]}  e6 {[%clk 0:03:00]} 3. d4 {[%clk 0:02:50]}  d5 {[%clk 0:03:00]} 4. e5 {[%clk 0:02:51]}  Nfd7 {[%clk 0:03:00]} 5. f4 {[%clk 0:02:52]}  c5 {[%clk 0:03:00]} 6. Nf3 {[%clk 0:02:52]}  Nc6 {[%clk 0:03:01]} 7. Be3 {[%clk 0:02:53]}  a6 {[%clk 0:03:01]} 8. Qd2 {[%clk 0:02:53]}  Be7 {[%clk 0:03:01]} 9. Be2 {[%clk 0:02:52]}  b5 {[%clk 0:02:59]} 10. Nd1 {[%clk 0:02:51]}  Bb7 {[%clk 0:02:55]} 11. c3 {[%clk 0:02:51]}  Qb6 {[%clk 0:02:53]} 12. Nf2 {[%clk 0:02:51]}  b4 {[%clk 0:02:48]} 13. O-O {[%clk 0:02:49]}  g6 {[%clk 0:02:47]} 14. g4 {[%clk 0:02:42]}  h5 {[%clk 0:02:46]} 15. h3 {[%clk 0:02:41]}  hxg4 {[%clk 0:02:45]} 16. hxg4 {[%clk 0:02:42]}  a5 {[%clk 0:02:45]} 17. Kg2 {[%clk 0:02:38]}  Ba6 {[%clk 0:02:43]} 18. Bxa6 {[%clk 0:02:34]}  Qxa6 {[%clk 0:02:42]} 19. Rh1 {[%clk 0:02:32]}  O-O-O {[%clk 0:02:42]} 20. dxc5 {[%clk 0:02:24]}  Nxc5 {[%clk 0:02:34]} 21. cxb4 {[%clk 0:02:21]}  axb4 {[%clk 0:02:18]} 22. Rhc1 {[%clk 0:02:20]}  d4 {[%clk 0:02:14]} 23. Nxd4 {[%clk 0:02:13]}  Nxd4 {[%clk 0:02:13]} 24. Bxd4 {[%clk 0:02:13]}  Kb8 {[%clk 0:02:01]} 25. Qxb4+ {[%clk 0:01:55]}  Qb7+ {[%clk 0:01:14]} 26. Qxb7+ {[%clk 0:01:50]}  Nxb7 {[%clk 0:01:15]} 27. Be3 {[%clk 0:01:45]}  Rd5 {[%clk 0:01:07]} 28. Kf3 {[%clk 0:01:41]}  g5 {[%clk 0:00:59]} 29. Rd1 {[%clk 0:01:37]}  Rxd1 {[%clk 0:00:47]} 30. Rxd1 {[%clk 0:01:36]}  gxf4 {[%clk 0:00:46]} 31. Kxf4 {[%clk 0:01:34]}  Kc7 {[%clk 0:00:33]} 32. Ne4 {[%clk 0:01:29]}  Rh2 {[%clk 0:00:25]} 33. Rd2 {[%clk 0:01:29]}  Rxd2 {[%clk 0:00:20]} 34. Bxd2 {[%clk 0:01:26]}  Nd8 {[%clk 0:00:19]} 35. Ba5+ {[%clk 0:01:25]}  Kc6 {[%clk 0:00:19]} 36. Bxd8 {[%clk 0:01:24]}  Bxd8 {[%clk 0:00:20]} 37. Nc3 {[%clk 0:01:24]}  Kc5 {[%clk 0:00:19]} 38. Ke4 {[%clk 0:01:24]}  Kc4 {[%clk 0:00:19]} 39. Ne2 {[%clk 0:01:24]}  Bb6 {[%clk 0:00:18]} 40. Nf4 {[%clk 0:01:16]}  Bd8 {[%clk 0:00:16]} 41. Nh3 {[%clk 0:01:05]}  Bh4 {[%clk 0:00:13]} 42. Ng1 {[%clk 0:01:04]}  Bd8 {[%clk 0:00:03]} 43. Nf3 {[%clk 0:01:04]}  Be7 {[%clk 0:00:02]} 44. Nd4 {[%clk 0:00:24]}  Bd8 {[%clk 0:00:03]} 45. Nc6 {[%clk 0:00:21]}  Bh4 {[%clk 0:00:04]} 46. Na5+ {[%clk 0:00:21]}  Kb5 {[%clk 0:00:04]} 47. Nb7 {[%clk 0:00:21]}  Kc6 {[%clk 0:00:04]} 48. Nd6 {[%clk 0:00:16]}  f6 {[%clk 0:00:04]} 49. Nc4 {[%clk 0:00:16]}  fxe5 {[%clk 0:00:02]} 50. Kxe5 {[%clk 0:00:17]}  Kd7 {[%clk 0:00:03]} 51. a4 {[%clk 0:00:15]}  Bg3+ {[%clk 0:00:02]} 52. Ke4 {[%clk 0:00:14]}  Bc7 {[%clk 0:00:01]} 53. g5 {[%clk 0:00:15]}  Ke7 {[%clk 0:00:01]} 54. b4 {[%clk 0:00:15]}  Kf7 {[%clk 0:00:01]} 55. Ne5+ {[%clk 0:00:13]} 1-0


[Site "https://www.chess.com"]

[Event "Titled Tuesday Blitz March 01 Early 2022"]
[White "Rodchenkov, Vitaly"]
[Black "Coto Mederos, Michel"]
[WhiteFideId "4152964"]
[BlackFideId "3508528"]
[WhiteElo "2337"]
[BlackElo "2427"]
[Result "0-1"]
[Round "04"]
[TimeControl "180+1"]
[Date "2022.03.01"]
[WhiteClock "0:01:48"]
[BlackClock "0:00:29"]

1. Nf3 {[%clk 0:03:00]}  d5 {[%clk 0:02:57]} 2. c4 {[%clk 0:03:00]}  d4 {[%clk 0:02:52]} 3. e3 {[%clk 0:03:00]}  c5 {[%clk 0:02:51]} 4. b4 {[%clk 0:02:59]}  cxb4 {[%clk 0:02:19]} 5. exd4 {[%clk 0:02:56]}  g6 {[%clk 0:02:18]} 6. Bb2 {[%clk 0:02:55]}  Bg7 {[%clk 0:02:17]} 7. a3 {[%clk 0:02:55]}  bxa3 {[%clk 0:02:16]} 8. Nxa3 {[%clk 0:02:55]}  Nf6 {[%clk 0:02:16]} 9. Be2 {[%clk 0:02:49]}  O-O {[%clk 0:02:17]} 10. O-O {[%clk 0:02:49]}  Bf5 {[%clk 0:02:12]} 11. Re1 {[%clk 0:02:47]}  a5 {[%clk 0:01:47]} 12. Qb3 {[%clk 0:02:45]}  Qc8 {[%clk 0:01:38]} 13. Nb5 {[%clk 0:02:39]}  Nc6 {[%clk 0:01:37]} 14. d5 {[%clk 0:02:37]}  Nb4 {[%clk 0:01:36]} 15. Nfd4 {[%clk 0:02:36]}  Ne4 {[%clk 0:01:21]} 16. Nxf5 {[%clk 0:02:30]}  Qxf5 {[%clk 0:01:17]} 17. Bf3 {[%clk 0:02:27]}  Nxd2 {[%clk 0:01:12]} 18. Qa3 {[%clk 0:02:10]}  Nxf3+ {[%clk 0:01:12]} 19. gxf3 {[%clk 0:02:09]}  Bxb2 {[%clk 0:01:03]} 20. Qxb2 {[%clk 0:02:09]}  Nd3 {[%clk 0:01:03]} 21. Qc3 {[%clk 0:02:07]}  Qg5+ {[%clk 0:00:55]} 22. Kf1 {[%clk 0:02:06]}  Nxe1 {[%clk 0:00:55]} 23. Rxe1 {[%clk 0:02:06]}  a4 {[%clk 0:00:54]} 24. Re3 {[%clk 0:01:57]}  Rfc8 {[%clk 0:00:50]} 25. Qb4 {[%clk 0:01:56]}  Qf4 {[%clk 0:00:45]} 26. Qxe7 {[%clk 0:01:53]}  Qxc4+ {[%clk 0:00:40]} 27. Kg2 {[%clk 0:01:51]}  Qxb5 {[%clk 0:00:39]} 28. d6 {[%clk 0:01:51]}  Rd8 {[%clk 0:00:34]} 29. Qf6 {[%clk 0:01:48]}  Qf5 {[%clk 0:00:29]} 0-1


[Site "https://www.chess.com"]

[Event "Titled Tuesday Blitz March 01 Early 2022"]
[White "Rozhkov, Viacheslav"]
[Black "Hakemi, Arman"]
[WhiteFideId "4181484"]
[BlackFideId "22520805"]
[WhiteElo "2324"]
[BlackElo "2208"]
[Result "0-1"]
[Round "04"]
[TimeControl "180+1"]
[Date "2022.03.01"]
[WhiteClock "0:00:06"]
[BlackClock "0:01:28"]

1. e4 {[%clk 0:03:00]}  c5 {[%clk 0:02:58]} 2. Nf3 {[%clk 0:03:00]}  e6 {[%clk 0:02:58]} 3. d4 {[%clk 0:03:00]}  cxd4 {[%clk 0:02:59]} 4. Nxd4 {[%clk 0:03:00]}  Nc6 {[%clk 0:03:00]} 5. Nc3 {[%clk 0:02:59]}  Qc7 {[%clk 0:02:58]} 6. g3 {[%clk 0:02:58]}  a6 {[%clk 0:02:56]} 7. Bg2 {[%clk 0:02:58]}  Nf6 {[%clk 0:02:57]} 8. O-O {[%clk 0:02:58]}  Nxd4 {[%clk 0:02:58]} 9. Qxd4 {[%clk 0:02:58]}  Bc5 {[%clk 0:02:59]} 10. Bf4 {[%clk 0:02:57]}  d6 {[%clk 0:02:57]} 11. Qd2 {[%clk 0:02:55]}  h6 {[%clk 0:02:54]} 12. Rad1 {[%clk 0:02:33]}  e5 {[%clk 0:02:34]} 13. Be3 {[%clk 0:02:32]}  Bb4 {[%clk 0:02:33]} 14. Nb5 {[%clk 0:02:05]}  axb5 {[%clk 0:02:31]} 15. Qxb4 {[%clk 0:02:04]}  Rxa2 {[%clk 0:02:22]} 16. Rxd6 {[%clk 0:01:00]}  O-O {[%clk 0:02:17]} 17. Rfd1 {[%clk 0:00:34]}  Qxc2 {[%clk 0:01:47]} 18. R6d2 {[%clk 0:00:28]}  Qc4 {[%clk 0:01:44]} 19. Qe7 {[%clk 0:00:22]}  Bg4 {[%clk 0:01:40]} 20. f3 {[%clk 0:00:19]}  Be6 {[%clk 0:01:40]} 21. Bxh6 {[%clk 0:00:19]}  Re8 {[%clk 0:01:38]} 22. Rd8 {[%clk 0:00:18]}  Rxd8 {[%clk 0:01:32]} 23. Qxd8+ {[%clk 0:00:17]}  Kh7 {[%clk 0:01:33]} 24. Bg5 {[%clk 0:00:17]}  Rxb2 {[%clk 0:01:31]} 25. Qd3 {[%clk 0:00:10]}  Qa2 {[%clk 0:01:28]} 26. Bf1 {[%clk 0:00:09]}  Bc4 {[%clk 0:01:27]} 27. Qe3 {[%clk 0:00:06]}  Bxf1 {[%clk 0:01:28]} 28. Rxf1 {[%clk 0:00:06]}  Rg2+ {[%clk 0:01:28]} 0-1


[Site "https://www.chess.com"]

[Event "Titled Tuesday Blitz March 01 Early 2022"]
[White "Santos Flores, Alberto"]
[Black "Rudzinska, Michalina"]
[WhiteFideId "3601234"]
[BlackFideId "1172883"]
[WhiteElo "2293"]
[BlackElo "1904"]
[Result "1-0"]
[Round "04"]
[TimeControl "180+1"]
[Date "2022.03.01"]
[WhiteClock "0:00:15"]
[BlackClock "0:00:04"]

1. e4 {[%clk 0:03:00]}  g5 {[%clk 0:02:56]} 2. d4 {[%clk 0:02:59]}  Bg7 {[%clk 0:02:46]} 3. Nc3 {[%clk 0:02:58]}  c5 {[%clk 0:02:43]} 4. d5 {[%clk 0:02:57]}  h6 {[%clk 0:02:42]} 5. Nf3 {[%clk 0:02:51]}  d6 {[%clk 0:02:42]} 6. Be2 {[%clk 0:02:50]}  Nf6 {[%clk 0:02:40]} 7. O-O {[%clk 0:02:48]}  Nbd7 {[%clk 0:02:37]} 8. a4 {[%clk 0:02:45]}  Nf8 {[%clk 0:02:36]} 9. h4 {[%clk 0:02:42]}  g4 {[%clk 0:02:33]} 10. Nd2 {[%clk 0:02:41]}  h5 {[%clk 0:02:33]} 11. Nc4 {[%clk 0:02:40]}  Ng6 {[%clk 0:02:33]} 12. Bg5 {[%clk 0:02:38]}  Nh7 {[%clk 0:02:21]} 13. Qd2 {[%clk 0:02:12]}  a6 {[%clk 0:02:19]} 14. Bh6 {[%clk 0:02:03]}  Bf6 {[%clk 0:02:17]} 15. g3 {[%clk 0:02:02]}  Bd7 {[%clk 0:02:16]} 16. a5 {[%clk 0:01:58]}  Qc7 {[%clk 0:02:11]} 17. Nb6 {[%clk 0:01:56]}  Rd8 {[%clk 0:02:08]} 18. Nc4 {[%clk 0:01:55]}  Ne5 {[%clk 0:01:59]} 19. Nxe5 {[%clk 0:01:53]}  Bxe5 {[%clk 0:02:00]} 20. Kg2 {[%clk 0:01:46]}  Nf6 {[%clk 0:01:50]} 21. Bf4 {[%clk 0:01:44]}  Kf8 {[%clk 0:01:45]} 22. Bxe5 {[%clk 0:01:43]}  dxe5 {[%clk 0:01:46]} 23. b3 {[%clk 0:01:25]}  Ne8 {[%clk 0:01:42]} 24. Nd1 {[%clk 0:01:23]}  Nd6 {[%clk 0:01:42]} 25. Bd3 {[%clk 0:01:18]}  Qc8 {[%clk 0:01:35]} 26. Ne3 {[%clk 0:01:16]}  f5 {[%clk 0:01:29]} 27. exf5 {[%clk 0:01:13]}  Nxf5 {[%clk 0:01:28]} 28. Nxf5 {[%clk 0:01:10]}  Bxf5 {[%clk 0:01:28]} 29. Bxf5 {[%clk 0:01:10]}  Qxf5 {[%clk 0:01:29]} 30. c4 {[%clk 0:01:10]}  e6 {[%clk 0:01:21]} 31. f3 {[%clk 0:01:02]}  Kg7 {[%clk 0:01:16]} 32. fxg4 {[%clk 0:01:01]}  Qe4+ {[%clk 0:01:16]} 33. Kh2 {[%clk 0:01:00]}  Qxg4 {[%clk 0:01:11]} 34. Qe3 {[%clk 0:00:55]}  Rhf8 {[%clk 0:00:36]} 35. Qxe5+ {[%clk 0:00:53]}  Kg8 {[%clk 0:00:37]} 36. Rxf8+ {[%clk 0:00:43]}  Rxf8 {[%clk 0:00:33]} 37. Qxe6+ {[%clk 0:00:41]}  Qxe6 {[%clk 0:00:32]} 38. dxe6 {[%clk 0:00:42]}  Rf2+ {[%clk 0:00:33]} 39. Kh3 {[%clk 0:00:42]}  Re2 {[%clk 0:00:33]} 40. Rd1 {[%clk 0:00:39]}  Rxe6 {[%clk 0:00:32]} 41. Rd5 {[%clk 0:00:38]}  Re3 {[%clk 0:00:30]} 42. Rxh5 {[%clk 0:00:37]}  Rxb3 {[%clk 0:00:30]} 43. Rxc5 {[%clk 0:00:36]}  Kg7 {[%clk 0:00:25]} 44. h5 {[%clk 0:00:35]}  b6 {[%clk 0:00:22]} 45. Rc7+ {[%clk 0:00:34]}  Kh6 {[%clk 0:00:16]} 46. Rc6+ {[%clk 0:00:33]}  Kxh5 {[%clk 0:00:16]} 47. axb6 {[%clk 0:00:30]}  a5 {[%clk 0:00:11]} 48. c5 {[%clk 0:00:30]}  a4 {[%clk 0:00:11]} 49. Rc8 {[%clk 0:00:29]}  a3 {[%clk 0:00:10]} 50. Ra8 {[%clk 0:00:29]}  Rb5 {[%clk 0:00:10]} 51. Rxa3 {[%clk 0:00:26]}  Rxc5 {[%clk 0:00:10]} 52. Rb3 {[%clk 0:00:25]}  Rc8 {[%clk 0:00:10]} 53. b7 {[%clk 0:00:25]}  Rb8 {[%clk 0:00:10]} 54. Rb5+ {[%clk 0:00:25]}  Kg6 {[%clk 0:00:09]} 55. Kg4 {[%clk 0:00:25]}  Kf6 {[%clk 0:00:10]} 56. Rb6+ {[%clk 0:00:23]}  Ke5 {[%clk 0:00:08]} 57. Kh5 {[%clk 0:00:20]}  Kd5 {[%clk 0:00:06]} 58. g4 {[%clk 0:00:19]}  Kc5 {[%clk 0:00:05]} 59. Rb1 {[%clk 0:00:19]}  Kc6 {[%clk 0:00:06]} 60. g5 {[%clk 0:00:18]}  Kc7 {[%clk 0:00:05]} 61. g6 {[%clk 0:00:17]}  Rh8+ {[%clk 0:00:06]} 62. Kg5 {[%clk 0:00:16]}  Kb8 {[%clk 0:00:06]} 63. g7 {[%clk 0:00:16]}  Rd8 {[%clk 0:00:04]} 64. Kg6 {[%clk 0:00:15]}  Rd6+ {[%clk 0:00:04]} 65. Kh7 {[%clk 0:00:15]}  Rd7 {[%clk 0:00:04]} 66. Kh8 {[%clk 0:00:15]} 1-0


[Site "https://www.chess.com"]